bitfinex-derivatives/quotes_BTCF0:USTF0_20241214
["timestamp","ask_amount","ask_price","bid_price","bid_amount"]
[1734164715621,0.81223533,101740.0,101730.0,0.55466242]
[1734164716321,0.81223533,101740.0,101730.0,0.51164655]
[1734164721323,0.81223533,101740.0,101730.0,0.51164456]
[1734164723226,0.36315773,101740.0,101730.0,0.51164456]
[1734164723526,0.72395773,101740.0,101730.0,0.51164456]
[1734164726125,0.8122002,101740.0,101730.0,0.55454346]
[1734164726522,0.8122002,101740.0,101730.0,0.90826687]
[1734164727114,0.4514002,101740.0,101730.0,0.90826687]
[1734164727319,0.8122002,101740.0,101730.0,0.90826687]
[1734164728224,0.72395773,101740.0,101730.0,0.55454346]
[1734164729031,0.70394527,101740.0,101730.0,0.55454346]
[1734164729224,0.79220543,101740.0,101730.0,0.90826687]
[1734164730932,0.79220543,101740.0,101730.0,0.90844631]
[1734164731629,0.70394527,101740.0,101730.0,0.90844631]
[1734164732128,0.70394527,101740.0,101730.0,0.69154745]
[1734164733226,0.68908113,101740.0,101730.0,0.69154745]
[1734164733423,0.83628759,101740.0,101730.0,0.69154745]
[1734164735626,0.68908113,101740.0,101730.0,0.33782404]
[1734164735933,0.68908113,101740.0,101730.0,0.29480797]
[1734164737932,0.62832916,101740.0,101730.0,0.29480797]
[1734164738132,0.68908113,101740.0,101730.0,0.36550797]
[1734164738531,0.62832916,101740.0,101730.0,0.36550797]
[1734164741529,0.68908113,101740.0,101730.0,0.36550797]
[1734164742328,0.56757719,101740.0,101730.0,0.36550797]
[1734164742528,0.62832916,101740.0,101730.0,0.13145197]
[1734164742731,0.62832916,101740.0,101730.0,0.42442341]
[1734164743133,0.56757719,101740.0,101730.0,0.42442341]
[1734164743335,0.62832916,101740.0,101730.0,0.42442341]
[1734164743737,0.26752916,101740.0,101730.0,0.42442341]
[1734164744031,0.35584136,101740.0,101730.0,0.6802085]
[1734164744236,0.23812343,101740.0,101730.0,0.72322133]
[1734164748733,0.23812343,101740.0,101730.0,0.72237111]
[1734164749831,0.23812343,101740.0,101730.0,0.77151811]
[1734164750047,0.17737146,101740.0,101730.0,0.77151811]
[1734164750336,0.23812343,101740.0,101730.0,0.77151811]
[1734164750536,0.14981123,101740.0,101730.0,0.77151811]
[1734164750840,0.14981123,101740.0,101730.0,0.77128484]
[1734164753345,0.14981123,101740.0,101730.0,0.77122796]
[1734164757235,0.14981123,101740.0,101730.0,0.77107782]
[1734164757635,0.14981123,101740.0,101730.0,0.77107484]
[1734164758948,0.23812343,101740.0,101730.0,0.77107484]
[1734164759544,0.23812343,101740.0,101730.0,0.72806201]
[1734164759746,0.23812343,101740.0,101730.0,0.77107371]
[1734164759946,0.23812343,101740.0,101730.0,0.72806201]
[1734164761042,0.23812343,101740.0,101730.0,0.47357041]
[1734164761350,0.59892343,101740.0,101730.0,0.42442341]
[1734164761551,0.59892343,101740.0,101730.0,0.71899403]
[1734164761753,0.23812343,101740.0,101730.0,0.71899403]
[1734164762054,0.59892343,101740.0,101730.0,0.76814379]
[1734164762438,0.23812343,101740.0,101730.0,0.76814379]
[1734164762653,0.59892343,101740.0,101730.0,0.47357041]
[1734164763044,0.59892343,101740.0,101730.0,0.7681535]
[1734164764243,0.59892343,101740.0,101730.0,0.51658436]
[1734164765059,0.59892343,101740.0,101730.0,0.77178968]
[1734164766559,0.59892343,101740.0,101730.0,0.51658436]
[1734164767459,0.59892343,101740.0,101730.0,0.77142861]
[1734164768562,0.71664136,101740.0,101730.0,0.77219039]
[1734164769444,0.71664136,101740.0,101730.0,0.51658436]
[1734164770558,0.71664136,101740.0,101730.0,0.48148436]
[1734164770757,0.71664136,101740.0,101730.0,0.44588436]
[1734164770758,0.75184136,101740.0,101730.0,0.44588436]
[1734164771161,0.39104136,101740.0,101730.0,0.70115306]
[1734164771651,0.27332343,101740.0,101730.0,0.70115306]
[1734164772659,0.39104136,101740.0,101730.0,0.70115306]
[1734164772951,0.75184136,101740.0,101730.0,0.70115306]
[1734164773355,0.39104136,101740.0,101730.0,0.44588436]
[1734164773561,0.39104136,101740.0,101730.0,0.40287041]
[1734164773957,0.75184136,101740.0,101730.0,0.40287041]
[1734164777751,0.78584136,101740.0,101730.0,0.40287041]
[1734164779353,0.42504136,101740.0,101730.0,0.65877726]
[1734164779658,0.78584136,101740.0,101730.0,0.65236265]
[1734164779857,0.78584136,101740.0,101730.0,0.35372341]
[1734164781458,0.42504136,101740.0,101730.0,0.35372341]
[1734164781650,0.78584136,101740.0,101730.0,0.35372341]
[1734164782163,0.42504136,101740.0,101730.0,0.35372341]
[1734164782358,0.78584136,101740.0,101730.0,0.35372341]
[1734164785956,0.72508939,101740.0,101730.0,0.35372341]
[1734164786258,0.78584136,101740.0,101730.0,0.35372341]
[1734164786649,0.78582148,101740.0,101730.0,0.35372341]
[1734164787667,0.72506951,101740.0,101730.0,0.35372341]
[1734164787869,0.42502148,101740.0,101730.0,0.40287041]
[1734164788368,0.66352916,101740.0,101730.0,0.40287041]
[1734164788561,0.75183335,101740.0,101730.0,0.40287041]
[1734164789058,0.30272916,101740.0,101730.0,0.40287041]
[1734164789258,0.66352916,101740.0,101730.0,0.40287041]
[1734164789466,0.75183291,101740.0,101730.0,0.40287041]
[1734164790061,0.75183291,101740.0,101730.0,0.65808247]
[1734164790261,0.75183291,101740.0,101730.0,0.70109616]
[1734164791060,0.75183291,101740.0,101730.0,0.65808247]
[1734164791465,0.75183291,101740.0,101730.0,0.65785026]
[1734164793368,0.66352916,101740.0,101730.0,0.65785026]
[1734164793673,0.75184978,101740.0,101730.0,0.65785026]
[1734164794562,0.75184978,101740.0,101730.0,0.65738164]
[1734164795179,0.39104978,101740.0,101730.0,0.65738164]
[1734164795370,0.71664978,101740.0,101730.0,0.65738164]
[1734164795570,0.71664978,101740.0,101730.0,0.69148164]
[1734164795765,0.71664978,101740.0,101730.0,0.43697041]
[1734164795965,0.71664978,101740.0,101730.0,0.69150983]
[1734164797273,0.60675281,101740.0,101730.0,0.69150983]
[1734164797474,0.60675281,101740.0,101730.0,0.72680983]
[1734164798580,0.60675281,101740.0,101730.0,0.37308642]
[1734164799079,0.12823488,101740.0,101730.0,0.37308642]
[1734164804872,0.12823488,101740.0,101730.0,0.37206777]
[1734164812771,0.10899902,101740.0,101730.0,1.14734889]
[1734164812971,0.10899902,101740.0,101730.0,1.64734889]
[1734164813172,0.0206784,101740.0,101730.0,3.19940851]
[1734164813371,0.0206784,101740.0,101730.0,2.49361974]
[1734164813372,0.10899902,101740.0,101730.0,2.49361974]
[1734164814075,0.10899902,101740.0,101730.0,2.24009897]
[1734164814275,0.10899902,101740.0,101730.0,2.49188013]
[1734164814780,0.0206784,101740.0,101730.0,3.19701798]
[1734164814974,0.0206784,101740.0,101730.0,3.22845137]
[1734164815786,0.0206784,101740.0,101730.0,2.02845137]
[1734164816180,0.0206784,101740.0,101730.0,1.29188013]
[1734164816486,0.0206784,101740.0,101730.0,2.49188013]
[1734164816889,0.0206784,101740.0,101730.0,1.29188013]
[1734164818985,0.0206784,101740.0,101730.0,1.29162588]
[1734164821982,0.0206784,101740.0,101730.0,1.2912188]
[1734164823190,0.0206784,101740.0,101730.0,1.35197077]
[1734164823386,0.74575839,101760.0,101750.0,0.049137]
[1734164823387,0.13745462,101760.0,101750.0,0.049137]
[1734164823584,0.13745462,101760.0,101750.0,0.71452018]
[1734164823780,0.049134,101760.0,101750.0,0.71452018]
[1734164823990,0.0594508,101760.0,101750.0,0.78732018]
[1734164824177,0.0103168,101760.0,101750.0,0.4338088]
[1734164824378,0.0103168,101760.0,101750.0,1.28716094]
[1734164824977,0.0098168,101760.0,101750.0,1.28716094]
[1734164825186,0.8232074,101770.0,101750.0,1.28716094]
[1734164825388,0.8232074,101770.0,101760.0,0.34350862]
[1734164825591,0.8232074,101770.0,101760.0,0.57900826]
[1734164825787,0.72960395,101770.0,101760.0,0.57900826]
[1734164826086,0.73932883,101770.0,101760.0,0.57900826]
[1734164826884,0.6216109,101770.0,101760.0,0.57900826]
[1734164830490,0.2608109,101770.0,101760.0,0.57900826]
[1734164830695,0.6216109,101770.0,101760.0,0.57900826]
[1734164832091,0.2608109,101770.0,101760.0,0.57900826]
[1734164832296,0.6216109,101770.0,101760.0,0.28463164]
[1734164833090,0.6216109,101770.0,101760.0,0.57900826]
[1734164833294,0.6216109,101770.0,101760.0,0.28463164]
[1734164835092,0.2608109,101770.0,101760.0,0.28463164]
[1734164835295,0.6216109,101770.0,101760.0,0.28463164]
[1734164835485,0.2608109,101770.0,101760.0,0.28463164]
[1734164835694,0.6216109,101770.0,101760.0,0.28463164]
[1734164835893,0.56085893,101770.0,101760.0,0.28463164]
[1734164836094,0.6216109,101770.0,101760.0,0.28463164]
[1734164837497,0.56085893,101770.0,101760.0,0.28463164]
[1734164837694,0.6216109,101770.0,101760.0,0.28463164]
[1734164839996,0.6221109,101770.0,101760.0,0.28463164]
[1734164840503,0.6221109,101770.0,101760.0,0.57900826]
[1734164844604,0.6221109,101770.0,101760.0,0.34350862]
[1734164847308,0.47872893,101770.0,101760.0,0.34350862]
[1734164847614,0.01022488,101770.0,101760.0,0.77176224]
[1734164847817,0.01022488,101770.0,101760.0,0.80646224]
[1734164848005,0.01022488,101770.0,101760.0,0.74571027]
[1734164848205,0.01022488,101770.0,101760.0,1.10651027]
[1734164848822,0.01022488,101770.0,101760.0,1.13789369]
[1734164849205,0.59827559,101780.0,101770.0,0.5]
[1734164849206,0.08832062,101780.0,101770.0,0.5]
[1734164849406,0.63609243,101790.0,101770.0,1.64237103]
[1734164849607,0.61595855,101790.0,101780.0,0.63968353]
[1734164850120,0.49824062,101790.0,101780.0,0.7920652]
[1734164850623,0.40992,101790.0,101780.0,0.7920652]
[1734164851211,0.41983834,101790.0,101780.0,0.7920652]
[1734164851922,0.48059031,101790.0,101780.0,0.7920652]
[1734164853320,0.48059031,101790.0,101780.0,0.43871306]
[1734164853527,0.11979031,101790.0,101780.0,0.37796109]
[1734164855015,0.12029031,101790.0,101780.0,0.37796109]
[1734164855928,0.07117031,101790.0,101780.0,0.37796109]
[1734164856326,0.07117031,101790.0,101780.0,0.43871306]
[1734164856528,0.01041834,101790.0,101780.0,0.43871306]
[1734164857323,0.01041834,101790.0,101780.0,0.67380616]
[1734164857515,0.01041834,101790.0,101780.0,0.43871306]
[1734164858125,0.07117031,101790.0,101780.0,0.43871306]
[1734164860625,0.01041834,101790.0,101780.0,0.43871306]
[1734164862225,0.01041834,101790.0,101780.0,0.049123]
[1734164862226,0.56940893,101790.0,101780.0,0.049123]
[1734164867325,0.60330893,101790.0,101780.0,0.049123]
[1734164870738,0.51498831,101790.0,101780.0,0.5785904]
[1734164871438,0.51498831,101790.0,101780.0,0.34346109]
[1734164874225,0.51498831,101790.0,101780.0,0.69681323]
[1734164874629,0.51498831,101790.0,101780.0,0.34346109]
[1734164875035,0.60330893,101790.0,101780.0,0.34346109]
[1734164877036,0.60280893,101790.0,101780.0,0.34346109]
[1734164877325,0.72052686,101790.0,101780.0,0.69681323]
[1734164878032,0.72052686,101790.0,101780.0,0.64769023]
[1734164878234,0.72052686,101790.0,101780.0,0.35335214]
[1734164879337,0.63220624,101790.0,101780.0,0.35335214]
[1734164879537,0.63220624,101790.0,101780.0,0.59724624]
[1734164879737,0.63220624,101790.0,101780.0,0.35335214]
[1734164882442,0.72060139,101790.0,101780.0,0.59783196]
[1734164884044,0.63220624,101790.0,101780.0,0.35335214]
[1734164885146,0.63220624,101790.0,101780.0,0.64808418]
[1734164888547,0.63220624,101790.0,101780.0,0.35335214]
[1734164889646,0.63220624,101790.0,101780.0,0.64801244]
[1734164892443,0.27140624,101790.0,101780.0,0.64801244]
[1734164892643,0.63220624,101790.0,101780.0,0.64801244]
[1734164892840,0.63220624,101790.0,101780.0,0.2946603]
[1734164893440,0.27140624,101790.0,101780.0,0.2946603]
[1734164893645,0.63220624,101790.0,101780.0,0.2946603]
[1734164893845,0.27140624,101790.0,101780.0,0.2946603]
[1734164894046,0.63220624,101790.0,101780.0,0.2946603]
[1734164895250,0.27140624,101790.0,101780.0,0.2946603]
[1734164895645,0.63220624,101790.0,101780.0,0.2946603]
[1734164896050,0.27140624,101790.0,101780.0,0.2946603]
[1734164896556,0.63220624,101790.0,101780.0,0.2946603]
[1734164896948,0.65206011,101790.0,101780.0,0.2946603]
[1734164898055,0.29126011,101790.0,101780.0,0.2946603]
[1734164898250,0.65206011,101790.0,101780.0,0.2946603]
[1734164899250,0.65206011,101790.0,101780.0,0.29465755]
[1734164899251,0.6521675,101790.0,101780.0,0.29465755]
[1734164901250,0.2913675,101790.0,101780.0,0.29465755]
[1734164901444,0.6521675,101790.0,101780.0,0.29465755]
[1734164902753,0.6521675,101790.0,101780.0,0.64824662]
[1734164905267,0.2913675,101790.0,101780.0,0.64824662]
[1734164905567,0.6521675,101790.0,101780.0,0.64824662]
[1734164907452,0.76554915,101790.0,101780.0,0.64824662]
[1734164909258,0.76554915,101790.0,101780.0,0.35358907]
[1734164909461,0.76554915,101790.0,101780.0,0.59838875]
[1734164909656,0.76554915,101790.0,101780.0,0.35358907]
[1734164909857,0.6182675,101790.0,101780.0,0.35358907]
[1734164910562,0.6182675,101790.0,101780.0,0.5983457]
[1734164910762,0.6182675,101790.0,101780.0,0.59834569]
[1734164910961,0.2574675,101790.0,101780.0,0.35358907]
[1734164911263,0.6182675,101790.0,101780.0,0.35358907]
[1734164911762,0.40474915,101790.0,101780.0,0.59649946]
[1734164911965,0.76554915,101790.0,101780.0,0.59649946]
[1734164913654,0.70479718,101790.0,101780.0,0.59649946]
[1734164913862,0.76554915,101790.0,101780.0,0.59649946]
[1734164914359,0.76554915,101790.0,101780.0,1.79649946]
[1734164914767,0.40474915,101790.0,101780.0,1.79657326]
[1734164915060,0.76554915,101790.0,101780.0,1.79657326]
[1734164917165,0.76554915,101790.0,101780.0,0.59657326]
[1734164919260,0.80174915,101790.0,101780.0,0.59657326]
[1734164919854,0.44094915,101790.0,101780.0,0.59780039]
[1734164920058,0.80174915,101790.0,101780.0,0.59780039]
[1734164921166,0.44094915,101790.0,101780.0,0.59780039]
[1734164921361,0.80174915,101790.0,101780.0,0.59780039]
[1734164922167,0.44094915,101790.0,101780.0,0.59780039]
[1734164922357,0.80174915,101790.0,101780.0,0.59780039]
[1734164924772,0.80174915,101790.0,101780.0,0.35358907]
[1734164925373,0.44094915,101790.0,101780.0,0.35358907]
[1734164925669,0.80174915,101790.0,101780.0,0.59752962]
[1734164928865,0.44094915,101790.0,101780.0,0.59752962]
[1734164929072,0.80174915,101790.0,101780.0,0.59752962]
[1734164930473,0.78189528,101790.0,101780.0,0.59752962]
[1734164931473,0.72114331,101790.0,101780.0,0.59752962]
[1734164931672,0.78189528,101790.0,101780.0,0.59752962]
[1734164932073,0.80199288,101790.0,101780.0,0.59752962]
[1734164933679,0.80199288,101790.0,101780.0,0.35358907]
[1734164933972,0.44119288,101790.0,101780.0,0.35358907]
[1734164934160,0.44119288,101790.0,101780.0,0.59713608]
[1734164934161,0.80199288,101790.0,101780.0,0.59713608]
[1734164934776,0.44119288,101790.0,101780.0,0.59713608]
[1734164935166,0.80199288,101790.0,101780.0,0.59713608]
[1734164935670,0.44119288,101790.0,101780.0,0.59713608]
[1734164936378,0.80199288,101790.0,101780.0,0.59713608]
[1734164937078,0.80199288,101790.0,101780.0,0.59713127]
[1734164938574,0.44119288,101790.0,101780.0,0.59713127]
[1734164938780,0.80199288,101790.0,101780.0,0.59713127]
[1734164938971,0.44119288,101790.0,101780.0,0.59713127]
[1734164939167,0.80199288,101790.0,101780.0,0.59713127]
[1734164940277,0.44119288,101790.0,101780.0,0.59713127]
[1734164940477,0.80199288,101790.0,101780.0,0.59713127]
[1734164941775,0.80199288,101790.0,101780.0,0.59694102]
[1734164942878,0.44119288,101790.0,101780.0,0.59694102]
[1734164943269,0.80199288,101790.0,101780.0,0.59694102]
[1734164943474,0.44119288,101790.0,101780.0,0.59694102]
[1734164943671,0.86274485,101790.0,101780.0,0.59694102]
[1734164943877,0.74491953,101790.0,101780.0,0.64841765]
[1734164944082,0.92165751,101790.0,101780.0,0.64841765]
[1734164944376,0.92165751,101790.0,101780.0,0.29482858]
[1734164944775,0.92165751,101790.0,101780.0,0.5306394]
[1734164944976,0.92165751,101790.0,101780.0,0.53063823]
[1734164949291,0.74491953,101790.0,101780.0,0.53063823]
[1734164950190,1.10571953,101790.0,101780.0,0.23580965]
[1734164953484,0.38411953,101790.0,101780.0,0.23580965]
[1734164953679,1.10571953,101790.0,101780.0,0.23580965]
[1734164959599,0.38411953,101790.0,101780.0,0.23580965]
[1734164959800,1.10571953,101790.0,101780.0,0.23580965]
[1734164961303,0.38411953,101790.0,101780.0,0.23580965]
[1734164961500,1.10571953,101790.0,101780.0,0.23580965]
[1734164962492,0.38411953,101790.0,101780.0,0.23580965]
[1734164962692,1.10571953,101790.0,101780.0,0.23580965]
[1734164964094,0.38411953,101790.0,101780.0,0.23580965]
[1734164964299,1.10571953,101790.0,101780.0,0.23580965]
[1734164966202,1.10571953,101790.0,101780.0,0.53063823]
[1734164966800,0.38411953,101790.0,101780.0,0.53063823]
[1734164967109,1.10571953,101790.0,101780.0,0.53063823]
[1734164970602,0.38411953,101790.0,101780.0,0.53063823]
[1734164970802,1.10571953,101790.0,101780.0,0.53063823]
[1734164971505,1.10571953,101790.0,101780.0,0.29482858]
[1734164972221,0.38411953,101790.0,101780.0,0.29482858]
[1734164972420,1.10571953,101790.0,101780.0,0.29482858]
[1734164972620,1.08562193,101790.0,101780.0,0.29482858]
[1734164976118,1.10562471,101790.0,101780.0,0.29482858]
[1734164979420,0.38402471,101790.0,101780.0,0.29482858]
[1734164979714,1.10562471,101790.0,101780.0,0.29482858]
[1734164982314,0.38402471,101790.0,101780.0,0.29482858]
[1734164982620,1.10562471,101790.0,101780.0,0.29482858]
[1734164985523,0.38402471,101790.0,101780.0,0.29482858]
[1734164985922,1.10562471,101790.0,101780.0,0.29482858]
[1734164986312,0.38402471,101790.0,101780.0,0.29482858]
[1734164986814,1.10562471,101790.0,101780.0,0.29482858]
[1734164987320,0.38402471,101790.0,101780.0,0.29482858]
[1734164987626,1.10562471,101790.0,101780.0,0.29482858]
[1734164988122,0.38402471,101790.0,101780.0,0.29482858]
[1734164988327,1.10562471,101790.0,101780.0,0.29482858]
[1734164991824,0.38402471,101790.0,101780.0,0.29482858]
[1734164992025,1.10562471,101790.0,101780.0,0.29482858]
[1734164992321,0.56076269,101790.0,101780.0,0.29482858]
[1734164992517,0.56076269,101790.0,101780.0,0.53063894]
[1734164992718,1.28236269,101790.0,101780.0,0.53063894]
[1734164992919,0.56076269,101790.0,101780.0,0.53063894]
[1734164993117,1.28236269,101790.0,101780.0,0.53063894]
[1734164994827,1.10562471,101790.0,101780.0,0.53063894]
[1734164995022,1.10562471,101790.0,101780.0,0.29482858]
[1734164995725,0.38402471,101790.0,101780.0,0.29482858]
[1734164996118,1.10562471,101790.0,101780.0,0.29482858]
[1734164996523,0.38402471,101790.0,101780.0,0.29482858]
[1734164996724,1.10562471,101790.0,101780.0,0.29482858]
[1734164997121,0.38402471,101790.0,101780.0,0.29482858]
[1734164997426,1.10562471,101790.0,101780.0,0.29482858]
[1734164999015,0.38402471,101790.0,101780.0,0.29482858]
[1734164999223,1.10562471,101790.0,101780.0,0.29482858]
[1734165001822,0.38402471,101790.0,101780.0,0.29482858]
[1734165002327,1.28236269,101790.0,101780.0,0.29482858]
[1734165002831,1.10562471,101790.0,101780.0,0.29482858]
[1734165003127,1.10562471,101790.0,101780.0,0.27472647]
[1734165003333,0.049123,101780.0,101770.0,0.42518907]
[1734165003520,0.82797292,101780.0,101770.0,0.35358907]
[1734165003725,0.049128,101770.0,101760.0,0.38988907]
[1734165003926,0.73774956,101770.0,101760.0,0.63390292]
[1734165004228,0.73775988,101770.0,101760.0,0.6197987]
[1734165004433,0.73775988,101770.0,101760.0,0.38988907]
[1734165004434,0.64932772,101770.0,101760.0,0.38988907]
[1734165004824,0.67871359,101770.0,101760.0,0.0363]
[1734165005019,0.85545157,101770.0,101760.0,0.0363]
[1734165005218,0.70816992,101770.0,101760.0,0.0363]
[1734165005418,0.72776813,101770.0,101750.0,0.0321]
[1734165005622,0.60006729,101760.0,101750.0,0.0645]
[1734165006026,0.64919929,101760.0,101750.0,0.0645]
[1734165006331,0.73747625,101760.0,101750.0,0.0645]
[1734165008730,0.049137,101750.0,101740.0,0.38358907]
[1734165009028,0.47068897,101750.0,101740.0,0.45830041]
[1734165009229,0.47068897,101750.0,101740.0,0.10471134]
[1734165010531,0.47068897,101750.0,101740.0,0.0617]
[1734165010726,0.47068897,101750.0,101740.0,0.110842]
[1734165015331,0.10988897,101750.0,101740.0,0.110842]
[1734165015837,0.47068897,101750.0,101740.0,0.110842]
[1734165019332,0.47068897,101750.0,101740.0,0.111342]
[1734165019729,0.10988897,101750.0,101740.0,0.111342]
[1734165019929,0.47068897,101750.0,101740.0,0.111342]
[1734165020825,0.48994026,101750.0,101740.0,0.111342]
[1734165023133,0.12914026,101750.0,101740.0,0.111342]
[1734165023337,0.48994026,101750.0,101740.0,0.111342]
[1734165023527,0.42918829,101750.0,101740.0,0.111342]
[1734165023726,0.48994026,101750.0,101740.0,0.111342]
[1734165027743,0.38005129,101750.0,101740.0,0.111342]
[1734165028043,0.44080326,101750.0,101740.0,0.111342]
[1734165029241,0.60043518,101760.0,101740.0,0.88648304]
[1734165029438,0.60043518,101760.0,101750.0,0.049137]
[1734165029945,0.51215822,101760.0,101750.0,0.049137]
[1734165030247,0.51265822,101760.0,101750.0,0.049137]
[1734165031243,0.51215822,101760.0,101750.0,0.049137]
[1734165032235,0.51265822,101760.0,101750.0,0.049137]
[1734165032440,0.66168715,101760.0,101750.0,0.40272607]
[1734165033340,0.66118715,101760.0,101750.0,0.40272607]
[1734165034339,0.66168715,101760.0,101750.0,0.63255566]
[1734165035239,0.66168715,101760.0,101750.0,0.63254393]
[1734165035539,0.30088715,101760.0,101750.0,0.40272607]
[1734165035748,0.60093518,101760.0,101750.0,0.40272607]
[1734165036441,0.24013518,101760.0,101750.0,0.40272607]
[1734165036638,0.60093518,101760.0,101750.0,0.40272607]
[1734165037644,0.24013518,101760.0,101750.0,0.40272607]
[1734165037842,0.60093518,101760.0,101750.0,0.40272607]
[1734165039748,0.54018321,101760.0,101750.0,0.40272607]
[1734165039953,0.60093518,101760.0,101750.0,0.40272607]
[1734165048554,0.66168715,101760.0,101750.0,0.40272607]
[1734165048751,0.61255215,101760.0,101750.0,0.40272607]
[1734165052454,0.61205215,101760.0,101750.0,0.40272607]
[1734165053646,0.61205215,101760.0,101750.0,0.63268544]
[1734165054253,0.7298155,101760.0,101750.0,0.40272607]
[1734165056354,0.7298155,101760.0,101750.0,0.6328163]
[1734165060656,0.60831156,101760.0,101750.0,0.6328163]
[1734165060962,0.7298155,101760.0,101750.0,0.6328163]
[1734165061357,0.60831156,101760.0,101750.0,0.6328163]
[1734165061665,0.7789475,101760.0,101750.0,0.5836793]
[1734165061959,0.86947473,101760.0,101750.0,0.35358907]
[1734165063956,0.50867473,101760.0,101750.0,0.35358907]
[1734165064163,0.86947473,101760.0,101750.0,0.35358907]
[1734165064361,0.72227054,101760.0,101750.0,0.35358907]
[1734165066260,0.72227054,101760.0,101740.0,0.43272907]
[1734165066467,0.50985592,101750.0,101740.0,0.66390546]
[1734165066658,0.50985592,101750.0,101740.0,0.31031639]
[1734165067270,0.50985592,101750.0,101740.0,0.66447988]
[1734165067461,0.50985592,101750.0,101740.0,1.86447988]
[1734165067865,0.14905592,101750.0,101740.0,1.86447988]
[1734165068168,0.50985592,101750.0,101740.0,1.86447988]
[1734165068462,0.50985592,101750.0,101740.0,1.86395627]
[1734165069266,0.50985592,101750.0,101740.0,1.51081639]
[1734165069572,0.50985592,101750.0,101740.0,1.8644474]
[1734165070266,0.50985592,101750.0,101740.0,1.8639474]
[1734165070770,0.08830395,101750.0,101740.0,1.8639474]
[1734165070971,0.14905592,101750.0,101740.0,1.8639474]
[1734165071357,0.14905592,101750.0,101740.0,1.8644474]
[1734165072368,0.19819292,101750.0,101740.0,1.8639474]
[1734165073064,0.13744095,101750.0,101740.0,1.8639474]
[1734165073270,0.19819292,101750.0,101740.0,1.8644474]
[1734165074369,0.19819292,101750.0,101740.0,1.8639474]
[1734165075267,0.19819292,101750.0,101740.0,0.35413101]
[1734165075268,0.25894489,101750.0,101740.0,0.35413101]
[1734165075573,0.049147,101730.0,101720.0,0.11155]
[1734165075867,0.049147,101730.0,101720.0,0.76813978]
[1734165075868,0.47069897,101730.0,101720.0,0.76813978]
[1734165076265,0.47069897,101730.0,101720.0,0.15456746]
[1734165076473,0.67675816,101730.0,101720.0,0.15456746]
[1734165077166,0.67675816,101730.0,101720.0,0.111552]
[1734165077368,0.55899481,101730.0,101720.0,0.111552]
[1734165078273,0.19819481,101730.0,101720.0,0.111552]
[1734165078569,0.55899481,101730.0,101720.0,0.111552]
[1734165079373,0.55899481,101730.0,101720.0,0.112052]
[1734165080368,0.47069897,101730.0,101720.0,0.112052]
[1734165083165,0.47069897,101730.0,101720.0,0.0328]
[1734165084074,0.409947,101730.0,101720.0,0.0328]
[1734165084372,0.47069897,101730.0,101720.0,0.0328]
[1734165084574,0.48075518,101730.0,101720.0,0.0328]
[1734165086069,0.11995518,101730.0,101720.0,0.0328]
[1734165086275,0.48075518,101730.0,101720.0,0.0328]
[1734165087172,0.48075518,101730.0,101720.0,0.081952]
[1734165090273,0.50075864,101730.0,101720.0,0.081952]
[1734165097585,0.22825448,101730.0,101720.0,0.081952]
[1734165097779,0.58905448,101730.0,101720.0,0.049652]
[1734165097978,0.62185448,101730.0,101720.0,0.049652]
[1734165103375,0.62185448,101730.0,101720.0,0.049152]
[1734165105285,0.73961783,101730.0,101720.0,0.049152]
[1734165106288,0.65132199,101730.0,101720.0,0.049152]
[1734165107190,0.73965947,101730.0,101720.0,0.049152]
[1734165107582,0.65132199,101730.0,101720.0,0.049152]
[1734165110692,0.65132199,101730.0,101720.0,0.049152]
[1734165111293,0.65132199,101730.0,101720.0,0.09217275]
[1734165111687,0.65132199,101730.0,101720.0,0.049152]
[1734165113700,0.73965438,101730.0,101720.0,0.049152]
[1734165114398,0.65132199,101730.0,101720.0,0.049152]
[1734165117791,0.73964709,101730.0,101720.0,0.049152]
[1734165121400,0.73964709,101730.0,101720.0,0.0921706]
[1734165124901,0.80039906,101730.0,101720.0,0.0921706]
[1734165125407,0.80039906,101730.0,101720.0,0.049152]
[1734165125793,0.71207396,101730.0,101720.0,0.049152]
[1734165126201,0.80039004,101730.0,101720.0,0.04302146]
[1734165126798,0.85927815,101730.0,101720.0,0.04302146]
[1734165128305,0.71207396,101730.0,101720.0,0.04302146]
[1734165129805,0.71207396,101730.0,101710.0,0.049155]
[1734165130112,0.57060002,101720.0,101710.0,0.09217672]
[1734165130404,0.57060002,101720.0,101710.0,0.09267672]
[1734165131419,0.57060002,101720.0,101710.0,0.09217672]
[1734165132165,0.61975202,101720.0,101710.0,0.09217672]
[1734165132316,0.61975202,101720.0,101710.0,0.09267672]
[1734165132499,0.65305202,101720.0,101710.0,0.09267672]
[1734165133413,0.65305202,101720.0,101710.0,0.09217672]
[1734165134409,0.65305202,101720.0,101710.0,0.09267672]
[1734165135407,0.65305202,101720.0,101710.0,0.09217672]
[1734165136315,0.65305202,101720.0,101710.0,0.09267672]
[1734165136504,0.65305202,101720.0,101710.0,0.0005]
[1734165136700,0.65305202,101720.0,101710.0,0.04352335]
[1734165136701,0.77081537,101720.0,101710.0,0.04352335]
[1734165136911,0.80161537,101720.0,101710.0,0.04352335]
[1734165137208,1.16241537,101720.0,101710.0,0.04352335]
[1734165137513,1.16241537,101720.0,101710.0,0.04302335]
[1734165138423,1.16241537,101720.0,101710.0,0.04352335]
[1734165139309,1.07411929,101720.0,101710.0,0.0005]
[1734165139506,1.1623251,101720.0,101710.0,0.0005]
[1734165142418,1.1623251,101720.0,101690.0,0.193423]
[1734165142419,0.004,101710.0,101690.0,0.193423]
[1734165142724,0.049179,101670.0,101650.0,0.049182]
[1734165142910,0.049179,101670.0,101630.0,2.62805181]
[1734165142911,0.049187,101650.0,101630.0,2.62805181]
[1734165143110,0.049187,101650.0,101630.0,2.15659972]
[1734165143111,0.06075197,101640.0,101630.0,2.15659972]
[1734165143307,0.06075197,101640.0,101630.0,1.909992]
[1734165143527,0.06087535,101640.0,101630.0,1.549192]
[1734165143711,0.42167535,101640.0,101630.0,1.549192]
[1734165144516,0.48242732,101640.0,101630.0,1.549192]
[1734165144924,0.53161732,101640.0,101630.0,1.549192]
[1734165146424,0.00012338,101640.0,101630.0,1.90994397]
[1734165146618,0.41999875,101650.0,101640.0,0.04919]
[1734165147656,0.41999875,101650.0,101640.0,0.08089]
[1734165149720,0.41999875,101650.0,101640.0,0.11259]
[1734165150528,0.48075072,101650.0,101640.0,0.11259]
[1734165154531,0.48075072,101650.0,101640.0,0.11309]
[1734165159427,0.50045825,101650.0,101640.0,0.11309]
[1734165161533,1.10330628,101650.0,101600.0,0.5539285]
[1734165161830,0.10995697,101610.0,101600.0,0.59208819]
[1734165162030,0.10995697,101610.0,101600.0,0.54287919]
[1734165162633,0.10995697,101610.0,101600.0,0.59208919]
[1734165163033,0.10995697,101610.0,101600.0,0.23128919]
[1734165164526,0.42155197,101620.0,101600.0,0.24283116]
[1734165164837,0.42155197,101620.0,101610.0,0.60995697]
[1734165164838,0.3109,101620.0,101610.0,0.60995697]
[1734165165135,0.3109,101620.0,101610.0,0.579605]
[1734165165526,0.3608,101630.0,101620.0,0.0492]